bitfinex-derivatives/quotes_SOLF0:USTF0_20250719
["timestamp","ask_amount","ask_price","bid_price","bid_amount"]
[1752931718704,4.77603531,177.52,177.5,10.06490807]
[1752931719003,3.24,177.52,177.51,3.13]
[1752931719503,3.24,177.52,177.51,7.56336316]
[1752931720202,8.8703,177.52,177.51,7.56336316]
[1752931720404,10.40633531,177.52,177.51,4.43336316]
[1752931720604,3.24,177.51,177.48,3.13]
[1752931720797,1.53603531,177.5,177.49,4.43451997]
[1752931721001,4.77603531,177.5,177.49,4.43451997]
[1752931722000,4.77603531,177.5,177.44,4.66251981]
[1752931722206,11.2575,177.57,177.45,7.55946245]
[1752931722207,4.77603531,177.47,177.45,7.55946245]
[1752931722505,3.24,177.46,177.45,3.13]
[1752931722705,3.24,177.46,177.45,7.55909142]
[1752931723396,3.24,177.46,177.45,13.19159142]
[1752931724707,3.24,177.46,177.45,8.7625]
[1752931725209,3.24,177.46,177.45,13.18798981]
[1752931725410,45.62432004,177.57,177.46,3.13]
[1752931725710,3.24,177.5,177.46,3.13]
[1752931726511,8.8711,177.5,177.47,5.6317]
[1752931726712,3.24,177.49,177.48,3.13]
[1752931731006,3.24,177.49,177.48,8.7615]
[1752931731710,3.24,177.49,177.48,3.13]
[1752931737317,3.24,177.49,177.48,8.7616]
[1752931737611,3.24,177.49,177.44,3.2]
[1752931737813,3.15,177.5,177.46,3.2]
[1752931738015,3.15,177.49,177.48,3.2]
[1752931738719,3.15,177.49,177.48,8.8316]
[1752931740616,3.15,177.49,177.48,3.2]
[1752931742218,3.15,177.49,177.48,8.8316]
[1752931743522,2.40119517,177.55,177.51,3.2]
[1752931743716,3.15,177.54,177.51,3.2]
[1752931744021,5.6305,177.52,177.51,3.2]
[1752931744317,8.7805,177.52,177.51,3.2]
[1752931744615,3.15,177.5,177.48,5.6314]
[1752931744822,3.15,177.5,177.49,3.2]
[1752931745522,3.15,177.5,177.49,8.8312]
[1752931751622,3.15,177.51,177.5,5.6308]
[1752931751821,103.48,177.59,177.49,1.535918]
[1752931752028,3.15,177.52,177.49,1.535918]
[1752931752326,5.6302,177.53,177.5,5.6307]
[1752931752527,3.15,177.51,177.5,5.6307]
[1752931753028,3.15,177.51,177.5,8.8307]
[1752931755332,3.15,177.51,177.5,13.24136446]
[1752931757433,3.15,177.51,177.5,8.8307]
[1752931760938,4.735918,177.53,177.52,3.12]
[1752931761338,3.2,177.53,177.52,3.12]
[1752931761739,3.2,177.53,177.52,8.7503]
[1752931763542,3.2,177.53,177.52,3.12]
[1752931765442,3.2,177.53,177.51,8.7505]
[1752931766543,8.83,177.53,177.51,8.7505]
[1752931766843,3.2,177.52,177.51,8.7505]
[1752931769040,3.2,177.53,177.52,5.6302]
[1752931769446,3.2,177.53,177.5,1.535918]
[1752931769744,3.2,177.53,177.52,3.12]
[1752931770045,3.2,177.53,177.52,8.7503]
[1752931770941,3.2,177.53,177.52,3.12]
[1752931773048,3.2,177.53,177.52,8.7503]
[1752931780658,3.2,177.53,177.52,3.12]
[1752931782258,3.2,177.53,177.52,8.7503]
[1752931783755,137.055,177.61,177.52,1.535918]
[1752931783756,3.2,177.6,177.52,1.535918]
[1752931784052,1.535918,177.59,177.57,3.12]
[1752931784253,3.2,177.58,177.56,4.655918]
[1752931784458,3.2,177.57,177.56,4.655918]
[1752931784759,3.2,177.57,177.55,8.7493]
[1752931786759,3.2,177.57,177.56,3.12]
[1752931788160,8.8287,177.57,177.56,3.12]
[1752931788361,3.2,177.57,177.56,3.12]
[1752931794163,3.2,177.57,177.56,8.749]
[1752931797259,3.2,177.57,177.5,4.66251981]
[1752931797461,3.32,177.55,177.53,3.32]
[1752931797660,3.32,177.55,177.54,3.32]
[1752931799362,3.32,177.55,177.54,8.9496]
[1752931800768,3.32,177.56,177.55,5.6293]
[1752931801568,3.32,177.56,177.55,8.9493]
[1752931801763,3.32,177.57,177.56,5.629]
[1752931801959,3.32,177.59,177.56,10.484918]
[1752931802168,3.32,177.59,177.57,3.32]
[1752931802563,8.9484,177.58,177.57,3.32]
[1752931803266,5.6289,177.57,177.5,4.66251981]
[1752931803471,3.32,177.56,177.53,3.32]
[1752931803659,1.535918,177.56,177.53,3.32]
[1752931803859,3.32,177.55,177.52,1.535918]
[1752931804074,3.32,177.54,177.53,8.9499]
[1752931805969,1.535918,177.58,177.55,3.32]
[1752931806179,3.32,177.57,177.56,3.32]
[1752931806369,3.32,177.57,177.54,3.32]
[1752931806570,3.32,177.55,177.54,3.32]
[1752931807071,3.32,177.55,177.54,8.9496]
[1752931807266,5.6297,177.54,177.51,3.32]
[1752931807568,3.32,177.52,177.51,3.32]
[1752931808774,3.32,177.52,177.46,4.66251981]
[1752931808973,33.7889,177.61,177.48,3.32]
[1752931808974,1.535918,177.51,177.48,3.32]
[1752931809273,5.631,177.5,177.48,3.32]
[1752931809464,3.32,177.49,177.48,3.32]
[1752931809667,3.32,177.51,177.48,3.32]
[1752931809973,3.32,177.51,177.48,4.855918]
[1752931810174,3.32,177.51,177.49,3.32]
[1752931810869,3.32,177.51,177.43,107.84251981]
[1752931810870,3.32,177.6,177.51,3.32]
[1752931811075,3.32,177.56,177.53,3.32]
[1752931811469,5.6295,177.55,177.52,7.166218]
[1752931811673,5.6295,177.55,177.54,3.32]
[1752931811874,5.6295,177.55,177.53,3.32]
[1752931812173,3.32,177.53,177.51,8.9504]
[1752931812374,4.855918,177.53,177.51,3.32]
[1752931812579,3.32,177.52,177.51,3.32]
[1752931812773,3.32,177.52,177.5,3.32]
[1752931813073,3.32,177.5,177.47,3.32]
[1752931813674,3.32,177.49,177.48,3.32]
[1752931814771,4.855918,177.52,177.5,3.32]
[1752931814979,3.32,177.52,177.5,3.32]
[1752931815471,3.32,177.52,177.51,3.32]
[1752931818677,3.32,177.52,177.51,8.9506]
[1752931819771,8.9503,177.52,177.5,3.32]
[1752931819976,3.32,177.51,177.46,3.32]
[1752931820280,3.15,177.5,177.48,3.11]
[1752931820577,3.15,177.5,177.47,8.7417]
[1752931820777,3.15,177.5,177.47,3.11]
[1752931821278,3.15,177.5,177.48,3.11]
[1752931821879,5.6312,177.49,177.48,3.11]
[1752931822076,8.7812,177.49,177.48,3.11]
[1752931822374,3.15,177.48,177.47,3.11]
[1752931825582,3.15,177.48,177.47,8.7419]
[1752931826185,3.15,177.5,177.47,3.11]
[1752931826882,3.15,177.5,177.49,3.11]
[1752931830482,3.15,177.52,177.49,3.11]
[1752931831486,3.15,177.52,177.5,5.6307]
[1752931831685,3.15,177.52,177.51,3.11]
[1752931832887,3.15,177.52,177.51,8.7406]
[1752931834486,3.15,177.55,177.48,2.39934443]
[1752931834690,3.15,177.55,177.49,3.11]
[1752931835186,3.15,177.54,177.53,5.63]
[1752931835584,3.15,177.54,177.53,8.74]
[1752931836899,3.15,177.54,177.53,3.11]
[1752931838891,3.15,177.53,177.48,2.39934443]
[1752931839092,3.15,177.53,177.51,3.11]
[1752931839993,8.78,177.53,177.51,8.7406]
[1752931840497,3.15,177.53,177.51,8.7406]
[1752931840690,3.15,177.53,177.52,3.11]
[1752931842294,3.15,177.53,177.52,8.7403]
[1752931844187,3.15,177.55,177.53,5.6298]
[1752931844390,3.15,177.55,177.54,3.11]
[1752931846692,3.15,177.55,177.54,8.7396]
[1752931847594,3.15,177.55,177.54,3.11]
[1752931852003,8.7793,177.55,177.54,3.11]
[1752931852700,3.15,177.55,177.54,8.7396]
[1752931854705,3.15,177.55,177.54,3.11]
[1752931855701,3.15,177.55,177.54,8.7396]
[1752931856604,5.6288,177.57,177.54,8.7396]
[1752931856804,3.07,177.56,177.55,3.31]
[1752931857807,8.699,177.56,177.55,3.31]
[1752931858304,8.699,177.56,177.54,3.31]
[1752931858500,8.699,177.56,177.55,3.31]
[1752931858909,10.23412038,177.56,177.55,3.31]
[1752931860008,4.60512038,177.56,177.55,3.31]
[1752931861308,10.23412038,177.56,177.55,3.31]
[1752931862209,3.07,177.55,177.54,3.31]
[1752931865610,3.07,177.55,177.54,8.9396]
[1752931867815,3.07,177.55,177.54,3.31]
[1752931868018,5.6293,177.55,177.53,3.31]
[1752931868317,3.07,177.54,177.53,3.31]
[1752931869320,3.07,177.55,177.54,3.31]
[1752931870323,4.60512038,177.56,177.52,1.53512038]
[1752931870523,4.60512038,177.56,177.55,3.31]
[1752931871022,10.23412038,177.56,177.55,3.31]
[1752931871625,3.07,177.55,177.53,8.9397]
[1752931871924,8.6993,177.55,177.54,3.31]
[1752931872125,5.6293,177.55,177.52,5.6302]
[1752931872424,3.07,177.54,177.53,3.31]
[1752931873126,3.07,177.54,177.53,8.94]
[1752931874619,7.16422038,177.56,177.53,8.94]
[1752931874620,3.07,177.55,177.53,5.63]
[1752931874818,3.07,177.57,177.55,3.31]
[1752931875727,3.07,177.57,177.56,3.31]
[1752931876927,3.07,177.56,177.54,8.9396]
[1752931877125,3.07,177.56,177.54,3.31]
[1752931877330,5.46857618,177.56,177.52,3.31]
[1752931877522,3.07,177.55,177.53,13.35023128]
[1752931877719,3.07,177.55,177.53,8.9398]
[1752931878122,5.6293,177.55,177.53,3.31]
[1752931878331,3.07,177.54,177.53,3.31]
[1752931878531,3.07,177.54,177.53,7.72116334]
[1752931878931,3.07,177.54,177.53,13.35116334]
[1752931881335,3.07,177.54,177.53,7.72116334]
[1752931881527,3.07,177.54,177.53,7.46116334]
[1752931881734,3.07,177.54,177.53,4.41116334]
[1752931881928,2.39857618,177.54,177.51,3.05]
[1752931882134,2.39857618,177.52,177.47,3.05]
[1752931882435,2.39857618,177.52,177.5,5.6309]
[1752931882636,3.17,177.51,177.5,5.6309]
[1752931882839,3.17,177.54,177.5,4.41609018]
[1752931883132,3.17,177.55,177.52,3.05]
[1752931883338,2.39857618,177.58,177.54,3.05]
[1752931883537,2.39857618,177.58,177.49,7.08350626]
[1752931883836,2.39857618,177.58,177.55,3.05]
[1752931884236,5.6284,177.58,177.55,5.6293]
[1752931884435,3.17,177.57,177.56,3.05]
[1752931886346,3.17,177.56,177.54,3.05]
[1752931886538,3.17,177.56,177.52,3.05]
[1752931886837,3.17,177.56,177.54,3.05]
[1752931887033,3.17,177.56,177.55,3.05]
[1752931887746,3.17,177.56,177.55,8.6793]
[1752931889345,5.56857618,177.58,177.57,3.05]
[1752931889939,3.17,177.58,177.57,3.05]
[1752931890243,3.17,177.58,177.57,8.6787]
[1752931890443,3.17,177.58,177.57,3.05]
[1752931891641,8.7983,177.58,177.57,3.05]
[1752931892647,3.17,177.57,177.56,3.05]
[1752931893742,2.39857618,177.57,177.51,4.68493008]
[1752931893939,3.17,177.56,177.52,4.41219614]
[1752931894139,3.17,177.56,177.53,7.46219614]
[1752931894340,3.17,177.55,177.54,7.46219614]
[1752931896446,3.17,177.56,177.55,3.05]
[1752931896749,3.17,177.56,177.55,7.46219614]
[1752931898054,3.17,177.58,177.56,3.05]
[1752931898250,117.49176655,177.59,177.56,3.05]
[1752931898450,3.17,177.58,177.56,8.679]
[1752931898651,3.17,177.58,177.57,3.05]
[1752931899452,119.94996655,177.59,177.57,3.05]
[1752931899850,3.17,177.58,177.57,3.05]
[1752931900152,3.17,177.62,177.57,3.05]
[1752931900350,3.17,177.63,177.59,3.05]
[1752931900855,3.17,177.63,177.61,3.05]
[1752931901944,5.6263,177.65,177.62,3.05]
[1752931902150,3.17,177.64,177.62,3.05]
[1752931902853,3.17,177.64,177.62,8.677]
[1752931903056,3.17,177.64,177.63,3.05]
[1752931903350,3.17,177.67,177.65,5.6259]
[1752931903655,3.17,177.68,177.66,3.05]
[1752931903855,5.6252,177.68,177.66,3.05]
[1752931904155,3.17,177.67,177.66,3.05]
[1752931906955,8.7955,177.67,177.66,3.05]
[1752931908758,3.17,177.67,177.66,3.05]
[1752931909357,8.02357618,177.69,177.66,3.05]
[1752931909659,2.39857618,177.69,177.66,3.05]
[1752931909958,8.7955,177.67,177.66,3.05]
[1752931910952,5.6252,177.68,177.65,5.6261]
[1752931911156,11.08377618,177.68,177.67,3.31]
[1752931914963,5.6256,177.67,177.65,3.31]
[1752931915264,3.06,177.66,177.64,5.6263]
[1752931915764,3.06,177.66,177.65,3.31]
[1752931916363,2.39857618,177.68,177.65,3.31]
[1752931916364,8.02387618,177.68,177.65,8.9361]
[1752931916557,3.06,177.66,177.65,8.9361]
[1752931918460,8.6853,177.68,177.66,3.31]
[1752931918865,5.6253,177.68,177.66,3.31]
[1752931919066,3.06,177.67,177.66,3.31]
[1752931919269,175.76309083,177.73,177.64,2.39857618]
[1752931919469,3.06,177.72,177.65,3.31]
[1752931919666,5.6243,177.71,177.68,5.625]
[1752931919869,3.06,177.7,177.69,3.31]
[1752931920367,3.06,177.7,177.68,8.935]
[1752931920566,3.06,177.7,177.68,5.625]
[1752931920764,3.06,177.7,177.69,3.31]
[1752931921266,3.06,177.7,177.62,3.31]
[1752931921461,3.06,177.68,177.62,3.31]
[1752931921659,3.06,177.72,177.62,2.39857618]
[1752931921860,5.45857618,177.71,177.68,3.31]
[1752931922369,3.06,177.7,177.68,3.31]
[1752931922669,3.06,177.69,177.68,3.31]
[1752931929371,3.06,177.69,177.66,3.31]
[1752931929573,3.06,177.69,177.62,4.37217164]
[1752931929772,2.39857618,177.68,177.65,5.6259]
[1752931929978,3.06,177.64,177.63,3.31]
[1752931930872,3.06,177.64,177.63,8.9366]
[1752931931074,3.06,177.65,177.63,3.31]
[1752931932274,2.39857618,177.66,177.64,3.31]
[1752931932672,2.39857618,177.66,177.63,5.6266]
[1752931932873,2.39857618,177.66,177.65,3.31]
[1752931933477,5.45857618,177.66,177.65,3.31]
[1752931935972,2.39857618,177.66,177.65,8.9361]
[1752931937573,5.45857618,177.68,177.67,3.31]
[1752931938978,2.39857618,177.68,177.67,8.9355]
[1752931939178,2.39857618,177.68,177.67,3.31]
[1752931939378,5.45857618,177.68,177.67,3.31]
[1752931940673,3.18,177.69,177.68,3.19]
[1752931940977,5.57857618,177.7,177.68,3.19]
[1752931941476,5.57857618,177.7,177.69,3.19]
[1752931941879,2.39857618,177.72,177.71,3.19]
[1752931942471,5.57857618,177.72,177.71,3.19]
[1752931944171,11.20247618,177.72,177.71,3.19]
[1752931946479,8.8043,177.71,177.7,3.19]
[1752931950483,3.18,177.7,177.65,3.19]
[1752931950686,3.18,177.69,177.67,3.19]
[1752931950888,2.39857618,177.7,177.68,4.39632987]
[1752931951181,2.39857618,177.7,177.68,3.19]
[1752931951381,3.18,177.69,177.68,3.19]
[1752931951885,8.8049,177.69,177.68,3.19]
[1752931953388,5.6249,177.69,177.68,3.19]
[1752931955288,8.8047,177.7,177.68,3.19]
[1752931957294,8.8049,177.69,177.68,3.19]
[1752931958097,3.18,177.69,177.68,3.19]
[1752931960198,8.8047,177.7,177.68,3.19]
[1752931960400,8.8049,177.69,177.68,3.19]
[1752931962402,8.8049,177.69,177.68,7.58822942]
[1752931963004,10.3371851,177.7,177.69,3.19]
[1752931966701,4.7125851,177.7,177.69,3.19]
[1752931967806,10.3371851,177.7,177.69,3.19]
[1752931970205,1.5325851,177.7,177.67,3.15]
[1752931970404,4.7325851,177.68,177.67,3.15]
[1752931970604,4.7325851,177.68,177.64,102.9]
[1752931970805,4.7325851,177.66,177.65,4.40179449]
[1752931971301,3.2,177.65,177.62,3.15]
[1752931971607,1.5325851,177.66,177.64,3.15]
[1752931971911,4.7325851,177.66,177.64,3.15]
[1752931972911,10.3583851,177.66,177.64,3.15]
[1752931973108,3.2,177.65,177.64,3.15]
[1752931973304,3.2,177.65,177.64,7.55191791]
[1752931973609,8.8261,177.65,177.64,7.55191791]
[1752931974505,3.2,177.65,177.64,7.55191791]
[1752931978206,3.2,177.65,177.64,13.17841791]
[1752931978412,7.1582851,177.67,177.65,3.15]
[1752931978814,4.7325851,177.67,177.65,3.15]
[1752931979613,10.3581851,177.67,177.65,3.15]
[1752931980014,1.5325851,177.69,177.65,1.5325851]
[1752931980217,3.2,177.69,177.67,3.15]
[1752931980517,3.2,177.72,177.67,4.6825851]
[1752931980710,5.6244,177.71,177.69,3.15]
[1752931981106,8.8244,177.71,177.69,3.15]
[1752931981711,1.5325851,177.75,177.71,3.15]
[1752931981918,4.7325851,177.75,177.72,4.39689684]
[1752931982105,4.7325851,177.75,177.73,3.15]
[1752931982512,112.03209779,177.79,177.74,3.15]
[1752931982812,1.5325851,177.77,177.75,4.39260016]
[1752931983113,3.2,177.75,177.73,8.7736]
[1752931983314,3.2,177.75,177.73,3.15]
[1752931983718,3.2,177.75,177.69,3.15]
[1752931983914,3.2,177.75,177.7,4.39248492]
[1752931984114,3.2,177.75,177.72,8.7738]
[1752931984315,5.59295607,177.75,177.72,8.7738]
[1752931984516,3.2,177.74,177.72,8.7738]
[1752931984814,3.2,177.73,177.72,5.6238]
[1752931985017,3.2,177.73,177.72,10.01909683]
[1752931985215,3.2,177.73,177.72,4.39529683]
[1752931985523,3.2,177.73,177.66,3.15]
[1752931985716,3.2,177.73,177.67,4.39575147]
[1752931985913,3.2,177.72,177.71,3.15]
[1752931986112,3.2,177.72,177.71,7.54575147]
[1752931986808,3.2,177.72,177.71,7.54506367]
[1752931987216,8.8242,177.72,177.69,8.7747]
[1752931987414,3.2,177.71,177.7,4.39575588]
[1752931987619,3.2,177.71,177.64,3.15]
[1752931987814,3.2,177.66,177.65,7.54715351]
[1752931989217,3.2,177.66,177.65,4.39715351]
[1752931989615,3.2,177.66,177.65,7.54715351]
[1752931990523,5.6258,177.66,177.64,3.15]
[1752931990722,2.39295607,177.67,177.64,3.15]
[1752931991121,3.2,177.66,177.64,3.15]
[1752931991327,3.2,177.65,177.64,3.15]
[1752931991624,3.2,177.65,177.64,7.54968117]
[1752931991827,5.59295607,177.65,177.64,4.39968117]
[1752931992025,5.6266,177.64,177.61,3.15]
[1752931992224,5.59295607,177.63,177.61,3.15]
[1752931992425,3.2,177.62,177.61,3.15]
[1752931992624,3.2,177.62,177.61,7.55054664]
[1752931995128,3.2,177.62,177.61,3.15]
[1752931995327,3.2,177.63,177.62,3.15]
[1752931996124,2.39295607,177.64,177.62,8.7771]
[1752931996318,3.2,177.74,177.63,3.15]
[1752931996523,3.2,177.66,177.63,3.15]
[1752931996927,3.2,177.66,177.59,2.39295607]
[1752931997129,5.6258,177.66,177.64,3.15]
[1752931997329,3.2,177.65,177.64,3.15]
[1752931997738,3.2,177.65,177.64,8.7764]
[1752931999430,3.2,177.65,177.59,2.39295607]
[1752931999431,3.2,177.67,177.65,5.6261]
[1752931999629,3.2,177.66,177.65,5.6261]
[1752932000130,3.2,177.66,177.65,8.7761]
[1752932001232,2.39295607,177.68,177.65,5.6261]
[1752932001433,3.08,177.67,177.66,3.08]
[1752932004931,5.6255,177.67,177.66,3.08]
[1752932005124,5.6255,177.67,177.64,5.6263]
[1752932005325,3.08,177.66,177.65,3.08]
[1752932006147,3.08,177.66,177.64,5.6263]
[1752932006631,3.08,177.66,177.65,3.08]
[1752932009735,3.08,177.67,177.65,3.08]
[1752932010037,11.09825607,177.68,177.65,3.08]
[1752932010232,8.01825607,177.68,177.65,5.626]
[1752932010432,3.08,177.67,177.66,3.08]
[1752932010830,8.7055,177.67,177.66,3.08]
[1752932011034,3.08,177.66,177.65,3.08]
[1752932011733,8.7058,177.66,177.63,8.7066]
[1752932011932,3.08,177.65,177.64,3.08]
[1752932012737,3.08,177.65,177.64,8.7064]
[1752932013836,3.08,177.65,177.64,3.08]
[1752932014334,8.7061,177.65,177.62,8.7069]
[1752932014538,3.08,177.64,177.63,7.47686999]
[1752932014840,3.08,177.64,177.63,3.08]
[1752932015537,3.08,177.64,177.63,8.7068]
[1752932018543,8.01875607,177.66,177.63,8.7068]
[1752932018846,3.08,177.65,177.64,8.7064]
[1752932020353,3.08,177.65,177.64,3.08]
[1752932020845,8.7061,177.65,177.62,5.627]
[1752932021051,3.08,177.64,177.62,8.707]
[1752932023353,3.08,177.64,177.63,8.7068]
[1752932026655,3.08,177.64,177.63,3.08]
[1752932028658,3.08,177.64,177.63,8.7068]
[1752932030160,3.08,177.64,177.63,13.11380336]
[1752932030662,3.08,177.64,177.63,7.48700336]
[1752932031363,3.08,177.64,177.63,13.11380336]
[1752932032363,8.7064,177.64,177.63,4.40700336]
[1752932032660,8.7064,177.64,177.62,5.6269]
[1752932032661,3.07,177.63,177.62,8.8869]
[1752932032861,3.07,177.63,177.62,13.29936194]
[1752932033061,4.60379366,177.63,177.62,13.29936194]
[1752932035965,4.60379366,177.63,177.62,10.03936194]
[1752932036665,4.60379366,177.63,177.62,13.29936194]
[1752932038870,3.07,177.63,177.62,13.29936194]
[1752932039071,4.60379366,177.63,177.62,13.29936194]
[1752932040071,3.07,177.63,177.62,13.29936194]
[1752932040269,4.60379366,177.63,177.62,13.29936194]
[1752932041371,3.07,177.63,177.62,7.67246194]
[1752932041566,4.60379366,177.64,177.63,3.26]
[1752932041767,3.07,177.66,177.64,3.26]
[1752932041970,3.07,177.68,177.66,3.26]
[1752932042174,3.07,177.7,177.68,3.26]
[1752932042468,3.07,177.7,177.69,3.26]
[1752932042668,3.07,177.7,177.69,7.66772402]
[1752932042875,1.53379366,177.71,177.69,4.40772402]
[1752932043074,3.07,177.72,177.71,3.26]
[1752932043673,3.07,177.72,177.71,8.8842]
[1752932043872,3.07,177.73,177.71,3.26]
[1752932044072,3.07,177.74,177.71,3.26]
[1752932044378,3.07,177.74,177.73,8.8836]
[1752932044976,3.07,177.74,177.73,3.26]
[1752932045679,3.07,177.74,177.73,8.8836]
[1752932046271,8.6933,177.74,177.73,3.26]
[1752932046473,3.07,177.74,177.73,3.26]
[1752932048578,3.07,177.74,177.73,8.8836]
[1752932048878,3.07,177.74,177.73,3.26]
[1752932049379,3.07,177.74,177.68,2.39392502]
[1752932049680,3.07,177.74,177.72,3.26]
[1752932049879,3.07,177.74,177.72,8.8838]
[1752932050379,3.07,177.74,177.73,3.26]
[1752932052478,3.07,177.75,177.73,3.26]
[1752932052679,2.39392502,177.76,177.73,3.26]
[1752932052881,3.07,177.74,177.73,3.26]
[1752932058592,8.6933,177.74,177.72,3.26]
[1752932058792,3.07,177.73,177.72,3.26]
[1752932059687,3.07,177.74,177.72,5.6239]
[1752932059894,3.07,177.74,177.73,3.26]
[1752932060892,3.26,177.75,177.74,3.31]
[1752932061792,5.65392502,177.76,177.74,3.31]
[1752932062296,5.65392502,177.76,177.74,8.9332]
[1752932062493,5.65392502,177.76,177.75,3.31]
[1752932064890,11.27652502,177.76,177.75,3.31]
[1752932065495,5.65392502,177.76,177.75,3.31]
[1752932066095,11.27652502,177.76,177.75,3.31]
[1752932066798,3.26,177.76,177.75,8.933]
[1752932066991,3.26,177.77,177.75,5.623]
[1752932067199,3.26,177.77,177.67,114.071]
[1752932067200,3.26,177.77,177.76,3.31]
[1752932068797,8.8823,177.77,177.76,3.31]
[1752932069499,3.26,177.75,177.74,3.31]
[1752932069701,3.26,177.75,177.67,11.251]
[1752932069702,3.26,177.75,177.72,3.31]
[1752932069911,3.26,177.75,177.66,3.31]
[1752932069912,3.26,177.73,177.66,3.31]
[1752932070104,3.26,177.7,177.66,3.31]
[1752932070398,2.39392502,177.69,177.66,3.31]
[1752932070596,3.26,177.68,177.66,3.31]
[1752932072704,5.6253,177.68,177.66,5.6257]
[1752932072904,3.26,177.67,177.66,5.6257]
[1752932073305,3.26,177.67,177.66,8.9357]
[1752932073505,3.26,177.68,177.67,3.31]
[1752932073805,11.27902502,177.69,177.67,3.31]
[1752932074306,3.26,177.71,177.64,5.70392502]
[1752932074605,3.26,177.71,177.66,3.31]
[1752932074800,5.6246,177.7,177.68,3.31]
[1752932075010,3.26,177.71,177.68,3.31]
[1752932075198,2.39392502,177.72,177.68,8.9352]
[1752932075397,3.26,177.69,177.68,8.9352]
[1752932075798,3.26,177.7,177.68,5.6252]
[1752932076002,3.26,177.7,177.69,3.31]
[1752932076416,5.65392502,177.73,177.7,3.31]
[1752932076609,3.26,177.72,177.7,3.31]
[1752932076809,3.26,177.72,177.71,3.31]
[1752932078008,5.65392502,177.73,177.71,3.31]
[1752932078207,5.65392502,177.73,177.71,5.6242]
[1752932078402,5.65392502,177.73,177.72,3.31]
[1752932080010,3.26,177.72,177.65,3.31]
[1752932080208,3.26,177.72,177.67,3.31]
[1752932081313,3.26,177.72,177.68,5.6249]
[1752932081511,3.26,177.72,177.69,3.31]
[1752932081909,3.26,177.72,177.7,3.31]
[1752932082109,3.26,177.72,177.71,3.31]
[1752932086815,3.26,177.72,177.69,5.6246]
[1752932086816,8.8839,177.72,177.68,5.625]
[1752932087018,3.26,177.71,177.7,3.31]
[1752932093624,8.8842,177.71,177.7,3.31]
[1752932093827,3.26,177.71,177.7,3.31]
[1752932096528,8.8842,177.71,177.7,3.31]
[1752932096723,8.8842,177.71,177.69,3.0]
[1752932096923,3.3,177.7,177.69,3.0]
[1752932097222,3.3,177.7,177.69,7.40952575]
[1752932098925,8.9245,177.7,177.69,4.40952575]
[1752932099128,3.3,177.7,177.67,3.0]
[1752932099327,3.3,177.7,177.68,4.41091322]